bitfinex-derivatives/quotes_BTCF0:USTF0_20260131
["timestamp","ask_amount","ask_price","bid_price","bid_amount"]
[1769899910145,0.19237676,78092.0,78080.0,0.1779863]
[1769899910342,0.00955138,78093.0,78080.0,0.1779863]
[1769899910645,0.19238185,78092.0,78080.0,0.1779863]
[1769899910842,0.00955138,78093.0,78080.0,0.1779863]
[1769899911049,0.19237689,78092.0,78080.0,0.1779863]
[1769899911240,0.10384,78094.0,78081.0,0.00969101]
[1769899911548,0.18852258,78093.0,78082.0,0.00969101]
[1769899911749,0.10384,78094.0,78083.0,0.012824]
[1769899911952,0.10384,78094.0,78084.0,0.00969101]
[1769899915842,8.966e-05,78095.0,78084.0,0.00969101]
[1769899922145,8.966e-05,78095.0,78085.0,0.012823]
[1769899922348,0.10384,78111.0,78090.0,0.00969101]
[1769899922551,0.17787957,78110.0,78097.0,0.00690796]
[1769899922751,0.17787957,78110.0,78099.0,0.00690796]
[1769899924149,0.00955138,78117.0,78099.0,0.00690796]
[1769899924351,0.17069901,78116.0,78099.0,0.00690796]
[1769899924551,0.00955138,78117.0,78099.0,0.00690796]
[1769899927451,0.00955138,78117.0,78100.0,0.00666528]
[1769899929458,0.00955138,78117.0,78101.0,0.0193795]
[1769899930360,0.0092452,78114.0,78101.0,0.0065585]
[1769899932460,0.0092452,78114.0,78098.0,0.01936129]
[1769899932961,0.0092452,78114.0,78099.0,0.00654029]
[1769899933755,0.0092452,78114.0,78098.0,0.012821]
[1769899933962,0.0092452,78105.0,78088.0,0.1038]
[1769899934260,0.0092452,78101.0,78088.0,0.1038]
[1769899934459,0.0092452,78099.0,78077.0,0.11693256]
[1769899934659,0.0092452,78097.0,78077.0,0.11693256]
[1769899934865,0.0092452,78095.0,78077.0,0.1038]
[1769899935165,0.0092452,78093.0,78077.0,0.1038]
[1769899935366,0.0092452,78091.0,78077.0,0.1038]
[1769899935664,0.0092452,78089.0,78077.0,0.1038]
[1769899935866,0.0092452,78089.0,78066.0,0.116626]
[1769899936164,0.0092452,78087.0,78066.0,0.1038]
[1769899938267,0.0092452,78085.0,78066.0,0.1038]
[1769899940571,0.0092452,78085.0,78068.0,0.00657753]
[1769899940774,0.0092452,78085.0,78067.0,0.012826]
[1769899940974,0.0092452,78085.0,78066.0,0.1038]
[1769899941474,0.0092452,78085.0,78066.0,0.116626]
[1769899943173,0.0092452,78085.0,78068.0,0.012826]
[1769899944174,0.0092452,78085.0,78067.0,0.00670706]
[1769899944473,0.0092452,78085.0,78068.0,0.00670706]
[1769899944671,0.0092452,78085.0,78069.0,0.012826]
[1769899949773,0.0092452,78085.0,78069.0,0.01953602]
[1769899950377,0.0092452,78085.0,78071.0,0.012826]
[1769899953779,0.0092452,78085.0,78073.0,0.012825]
[1769899954376,0.0092452,78085.0,78034.0,0.10384]
[1769899954581,0.0092452,78083.0,78065.0,0.012827]
[1769899957085,0.0092452,78083.0,78062.0,0.02244917]
[1769899960585,0.28167957,78090.0,78058.0,0.01279625]
[1769899960586,0.00999671,78081.0,78063.0,0.00997649]
[1769899960785,0.00999671,78079.0,78063.0,0.00997649]
[1769899967087,0.02282071,78079.0,78063.0,0.00997649]
[1769899967292,0.00932355,78078.0,78063.0,0.00997649]
[1769899969494,0.11316355,78080.0,78063.0,0.00997649]
[1769899969695,0.17676644,78079.0,78063.0,0.00997649]
[1769899969896,0.17676644,78078.0,78063.0,0.00997649]
[1769899970195,0.12598755,78080.0,78063.0,0.00997649]
[1769899970496,0.18609615,78079.0,78063.0,0.00997649]
[1769899970694,0.1767726,78078.0,78063.0,0.00997649]
[1769899970891,0.00932355,78079.0,78063.0,0.00997649]
[1769899971098,0.18609628,78078.0,78063.0,0.00997649]
[1769899971297,0.00932355,78078.0,78063.0,0.00997649]
[1769899972594,0.012825,78078.0,78063.0,0.00997649]
[1769899972795,0.17676799,78077.0,78063.0,0.00997649]
[1769899972995,0.012825,78078.0,78063.0,0.00997649]
[1769899973498,0.00932355,78077.0,78060.0,0.00924338]
[1769899973699,0.17809493,78073.0,78060.0,0.00924338]
[1769899975798,0.18748739,78073.0,78060.0,0.00924338]
[1769899976407,0.17809493,78073.0,78060.0,0.00924338]
[1769899978106,0.00939246,78079.0,78060.0,0.00924338]
[1769899978306,0.17675453,78078.0,78060.0,0.00924338]
[1769899978604,0.17675453,78077.0,78060.0,0.00924338]
[1769899978806,0.17675453,78076.0,78060.0,0.00924338]
[1769899979001,0.00939246,78078.0,78060.0,0.00924338]
[1769899979205,0.18615009,78077.0,78060.0,0.00924338]
[1769899979406,0.10384,78076.0,78060.0,0.00924338]
[1769899980402,0.00939246,78080.0,78065.0,0.00958002]
[1769899980606,0.00939246,78089.0,78067.0,0.00958002]
[1769899980909,0.17678305,78088.0,78073.0,0.00958002]
[1769899981208,0.10384,78090.0,78073.0,0.00958002]
[1769899981409,0.17678802,78089.0,78073.0,0.00958002]
[1769899981611,0.17678802,78088.0,78078.0,0.00958002]
[1769899981805,0.116661,78100.0,78081.0,0.012824]
[1769899982005,0.17859593,78099.0,78082.0,0.00958002]
[1769899982308,0.10384,78117.0,78093.0,0.00957545]
[1769899982506,0.10384,78117.0,78101.0,0.00957545]
[1769899982902,0.10384,78117.0,78108.0,0.00957545]
[1769899983410,0.10384,78126.0,78108.0,0.00957545]
[1769899983606,0.10384,78126.0,78116.0,0.17809493]
[1769899983806,0.10384,78131.0,78117.0,0.00957545]
[1769899984103,0.012815,78135.0,78117.0,0.00957545]
[1769899984303,0.10384,78137.0,78118.0,0.012818]
[1769899984511,0.116655,78137.0,78121.0,0.00920794]
[1769899984903,0.10384,78137.0,78121.0,0.00920794]
[1769899985504,0.10384,78137.0,78127.0,0.17809493]
[1769899986611,0.10384,78137.0,78128.0,0.00913134]
[1769899987007,0.10384,78137.0,78122.0,0.10384]
[1769899987309,0.00938103,78134.0,78120.0,0.17809493]
[1769899987902,0.00938103,78132.0,78120.0,0.17809493]
[1769899988303,0.00938103,78128.0,78120.0,0.17809493]
[1769899992514,0.00938103,78133.0,78120.0,0.17809493]
[1769899993106,0.012815,78134.0,78120.0,0.17809493]
[1769899993107,0.012815,78134.0,78121.0,0.00923176]
[1769899993510,0.012815,78134.0,78120.0,0.17809493]
[1769899993511,0.012816,78132.0,78093.0,0.01015176]
[1769899993711,0.012817,78126.0,78110.0,0.17809493]
[1769899993914,0.00938103,78125.0,78110.0,0.17809493]
[1769899995717,0.00938103,78123.0,78110.0,0.17809493]
[1769899996310,0.00938103,78121.0,78110.0,0.17809493]
[1769899997013,0.012817,78122.0,78110.0,0.17809493]
[1769899997207,0.00938103,78121.0,78110.0,0.17809493]
[1769899997918,0.012818,78120.0,78110.0,0.17809493]
[1769899998214,0.02219903,78120.0,78110.0,0.17809493]
[1769899999213,0.012818,78120.0,78110.0,0.17809493]
[1769899999413,0.1038,78121.0,78110.0,0.17809493]
[1769900000418,0.1038,78121.0,78111.0,0.00979514]
[1769900002821,0.1038,78121.0,78110.0,0.17809493]
[1769900003023,0.116618,78121.0,78110.0,0.17809493]
[1769900003716,0.35618986,78120.0,78106.0,0.00979514]
[1769900004122,0.35618986,78120.0,78103.0,0.1038]
[1769900004317,0.17809493,78113.0,78104.0,0.00979514]
[1769900004518,0.17809493,78113.0,78103.0,0.1038]
[1769900005124,0.17809493,78113.0,78098.0,0.012821]
[1769900005317,0.17809493,78108.0,78097.0,0.01274408]
[1769900005518,0.17809493,78108.0,78095.0,0.00979514]
[1769900006325,0.17809493,78108.0,78095.0,0.02246658]
[1769900006824,0.17809493,78105.0,78095.0,0.02246658]
[1769900007421,0.17809493,78105.0,78095.0,0.01267144]
[1769900007620,0.17809493,78105.0,78091.0,0.00979514]
[1769900007821,0.17809493,78100.0,78092.0,0.00979514]
[1769900008422,0.17809493,78102.0,78092.0,0.00979514]
[1769900010224,0.17809493,78102.0,78091.0,0.01281865]
[1769900010429,0.17809493,78102.0,78089.0,0.02261814]
[1769900010733,0.17809493,78099.0,78089.0,0.02300043]
[1769900011223,0.17809493,78099.0,78089.0,0.12680043]
[1769900011826,0.17809493,78099.0,78089.0,0.00979514]
[1769900012828,0.17809493,78099.0,78084.0,0.1038]
[1769900013026,0.17809493,78094.0,78084.0,0.11359514]
[1769900013432,0.17809493,78094.0,78085.0,0.00979514]
[1769900014232,9.3e-07,78094.0,78085.0,0.00979514]
[1769900015234,9.3e-07,78094.0,78086.0,0.1038]
[1769900018425,9.3e-07,78094.0,78086.0,0.116623]
[1769900018631,0.17809493,78099.0,78086.0,0.1038]
[1769900018831,0.17809493,78096.0,78086.0,0.1038]
[1769900019435,0.17809493,78096.0,78086.0,0.11325573]
[1769900019938,0.17809493,78096.0,78086.0,0.1038]
[1769900023644,0.17809493,78096.0,78082.0,0.0223553]
[1769900023645,0.17809493,78096.0,78083.0,0.00917867]
[1769900023841,0.17809493,78092.0,78083.0,0.00917867]
[1769900024334,0.17809493,78092.0,78083.0,0.11297867]
[1769900025039,0.17809493,78092.0,78084.0,0.00917867]
[1769900025635,0.17809493,78092.0,78083.0,0.1038]
[1769900025839,0.17809493,78092.0,78084.0,0.00917867]
[1769900027642,0.17809493,78092.0,78083.0,0.1038]
[1769900030144,0.17809493,78092.0,78084.0,0.00917867]
[1769900032850,0.17809493,78092.0,78083.0,0.1038]
[1769900033654,0.00956581,78094.0,78083.0,0.1038]
[1769900035055,0.02238781,78094.0,78083.0,0.1038]
[1769900035958,0.02238781,78094.0,78080.0,0.00917867]
[1769900036151,0.00956581,78094.0,78081.0,0.10384]
[1769900038553,0.012822,78096.0,78082.0,0.00917867]
[1769900038760,0.02238781,78096.0,78082.0,0.00917867]
[1769900040664,0.17803594,78100.0,78081.0,0.10384]
[1769900040665,0.00956581,78095.0,78081.0,0.116664]
[1769900040862,0.00956581,78095.0,78081.0,0.10384]
[1769900042057,0.00956581,78094.0,78081.0,0.10384]
[1769900042258,0.00956581,78094.0,78077.0,0.10384]
[1769900042453,0.00956581,78092.0,78077.0,0.10384]
[1769900042660,0.00956581,78092.0,78077.0,0.11688266]
[1769900046760,0.00956581,78092.0,78078.0,0.00917867]
[1769900047655,0.012822,78094.0,78078.0,0.00917867]
[1769900048165,0.00920401,78096.0,78078.0,0.00917867]
[1769900048962,0.012822,78093.0,78078.0,0.00917867]
[1769900049157,0.00920401,78096.0,78078.0,0.00917867]
[1769900049362,0.012822,78094.0,78078.0,0.00917867]
[1769900050369,0.02202601,78093.0,78078.0,0.00917867]
[1769900050569,0.00920401,78093.0,78078.0,0.00917867]
[1769900051164,0.012822,78092.0,78078.0,0.00917867]
[1769900051871,0.00920401,78093.0,78078.0,0.00917867]
[1769900052864,0.02202601,78093.0,78078.0,0.00917867]
[1769900054367,0.012822,78093.0,78078.0,0.00917867]
[1769900054870,0.02202601,78093.0,78078.0,0.00917867]
[1769900056264,0.00920401,78092.0,78078.0,0.00917867]
[1769900056672,0.00920401,78092.0,78079.0,0.012824]
[1769900057065,0.00920401,78092.0,78079.0,0.02249524]
[1769900057470,0.00920401,78096.0,78079.0,0.02249524]
[1769900057870,0.00920401,78096.0,78080.0,0.00967124]
[1769900058071,0.19252957,78095.0,78080.0,0.00967124]
[1769900058369,0.02202601,78095.0,78080.0,0.00967124]
[1769900059165,0.10384,78097.0,78080.0,0.00967124]
[1769900059566,0.012821,78101.0,78080.0,0.00967124]
[1769900059778,0.012818,78119.0,78091.0,0.00967124]
[1769900060073,0.012819,78110.0,78093.0,0.00967124]
[1769900060368,0.012819,78113.0,78093.0,0.00967124]
[1769900061962,0.012818,78116.0,78095.0,0.00967124]
[1769900062171,0.116657,78122.0,78101.0,0.00967124]
[1769900062470,0.116657,78122.0,78103.0,0.00967124]
[1769900062861,0.10384,78122.0,78103.0,0.00967124]
[1769900063465,0.012817,78125.0,78103.0,0.00967124]
[1769900064171,0.012816,78128.0,78105.0,0.00967124]
[1769900064569,0.012817,78126.0,78105.0,0.00967124]
[1769900065271,0.012816,78129.0,78108.0,0.00967124]
[1769900065471,0.00920401,78130.0,78112.0,0.00967124]
[1769900065672,0.00920401,78130.0,78114.0,0.00967124]
[1769900065869,0.00920401,78130.0,78116.0,0.00967124]
[1769900066069,0.116656,78133.0,78116.0,0.00967124]
[1769900066268,0.12586001,78133.0,78116.0,0.00967124]
[1769900066468,0.00920401,78132.0,78116.0,0.00967124]
[1769900068865,0.116656,78133.0,78116.0,0.00967124]
[1769900068866,0.012816,78131.0,78116.0,0.00967124]
[1769900069266,0.10384,78133.0,78116.0,0.00967124]
[1769900069474,0.012815,78134.0,78117.0,0.012818]
[1769900069667,0.00920401,78140.0,78115.0,0.1038]
[1769900069668,0.012815,78137.0,78120.0,0.00967124]
[1769900069874,0.012815,78135.0,78120.0,0.00967124]
[1769900070267,0.00920401,78140.0,78121.0,0.00967124]
[1769900070569,0.1038,78143.0,78126.0,0.00967124]
[1769900070776,0.1038,78143.0,78128.0,0.00967124]
[1769900071073,0.1038,78143.0,78130.0,0.00967124]
[1769900071473,0.012813,78146.0,78130.0,0.00967124]
[1769900072073,0.02201701,78146.0,78130.0,0.00967124]
[1769900075671,0.00920401,78146.0,78130.0,0.00967124]
[1769900075877,0.00920401,78146.0,78131.0,0.00967124]
[1769900076081,0.00920401,78146.0,78131.0,0.02230778]
[1769900076278,0.00920401,78146.0,78132.0,0.00967124]
[1769900076876,0.012813,78149.0,78132.0,0.00967124]
[1769900077379,0.00902101,78150.0,78133.0,0.00937097]
[1769900079775,0.00902101,78149.0,78133.0,0.00937097]
[1769900081173,0.00902101,78149.0,78133.0,0.02218597]
[1769900081681,0.00902101,78149.0,78133.0,0.00937097]
[1769900082683,0.00951353,78148.0,78133.0,0.00937097]
[1769900084381,0.02232653,78148.0,78133.0,0.00937097]
[1769900084583,0.00951353,78148.0,78133.0,0.11313097]
[1769900084783,0.00951353,78148.0,78134.0,0.0092016]
[1769900086683,0.00951353,78148.0,78134.0,0.0220166]
[1769900086883,0.00951353,78148.0,78135.0,0.0092016]
[1769900087480,0.00951353,78148.0,78134.0,0.012815]
[1769900088480,0.00951353,78152.0,78135.0,0.0092016]
[1769900088686,0.00951353,78151.0,78135.0,0.0092016]
[1769900088882,0.00951353,78151.0,78133.0,0.10376]
[1769900089083,0.00951353,78149.0,78133.0,0.10376]
[1769900089486,0.00951353,78149.0,78133.0,0.116575]
[1769900090789,0.17803594,78150.0,78136.0,0.0092016]
[1769900091189,0.18754947,78150.0,78136.0,0.0092016]
[1769900092383,0.00951353,78149.0,78136.0,0.0092016]
[1769900093683,0.17779203,78146.0,78136.0,0.0092016]
[1769900097989,0.17779203,78146.0,78133.0,0.10376]
[1769900099190,0.17779203,78146.0,78134.0,0.0092016]
[1769900101495,0.17779203,78146.0,78134.0,0.0220166]
[1769900101695,0.17779203,78146.0,78134.0,0.0092016]
[1769900101895,0.18730556,78146.0,78133.0,0.10376]
[1769900102097,0.17779203,78146.0,78133.0,0.1129616]
[1769900103188,0.00951353,78145.0,78133.0,0.116575]
[1769900103387,0.00951353,78145.0,78133.0,0.10376]
[1769900103795,0.17779203,78146.0,78135.0,0.0092016]
[1769900104184,0.17779203,78146.0,78136.0,0.012815]
[1769900104385,0.17779203,78146.0,78135.0,0.0092016]
[1769900105196,0.17779203,78146.0,78138.0,0.012815]
[1769900105390,0.00951353,78156.0,78140.0,0.0092016]
[1769900105591,0.17779203,78150.0,78140.0,0.0092016]
[1769900105989,0.17779203,78150.0,78143.0,0.0092016]
[1769900106194,0.17779203,78160.0,78147.0,0.0092016]
[1769900106590,0.17779203,78160.0,78152.0,0.0092016]
[1769900106896,0.012809,78171.0,78154.0,0.0092016]
[1769900106897,0.00951353,78170.0,78154.0,0.0092016]
[1769900107092,0.25245933,78197.0,78153.0,0.116572]
[1769900107093,0.00917263,78182.0,78168.0,0.02212749]
[1769900107289,0.00917263,78182.0,78169.0,0.10376]
[1769900107488,0.00917263,78199.0,78179.0,0.012808]
[1769900107686,0.00917263,78197.0,78181.0,0.00931749]
[1769900107993,0.00917263,78197.0,78183.0,0.012807]
[1769900108195,0.11293263,78201.0,78183.0,0.00931749]
[1769900108397,0.00917263,78200.0,78186.0,0.012807]
[1769900109899,0.10376,78201.0,78188.0,0.012806]
[1769900110294,0.00917263,78205.0,78189.0,0.10376]
[1769900110898,0.00917263,78205.0,78190.0,0.012806]
[1769900111998,0.00917263,78205.0,78192.0,0.012806]
[1769900114005,0.00917263,78214.0,78195.0,0.012805]
[1769900114200,0.00917263,78219.0,78199.0,0.02212249]
[1769900114390,0.00917263,78219.0,78200.0,0.10372]
[1769900114801,0.00917263,78219.0,78201.0,0.00931749]
[1769900115299,0.00917263,78219.0,78200.0,0.10372]
[1769900115499,0.00917263,78219.0,78200.0,0.11303749]
[1769900116403,0.00917263,78219.0,78200.0,0.28151203]
[1769900116700,0.00917263,78219.0,78200.0,0.29082952]
[1769900116892,0.00917263,78219.0,78200.0,0.11303749]
[1769900117092,0.00917263,78219.0,78200.0,0.10372]
[1769900117701,0.012801,78224.0,78201.0,0.00931749]
[1769900118002,0.012801,78224.0,78200.0,0.28151203]
[1769900118003,0.00917263,78233.0,78212.0,0.00931749]
[1769900118203,0.00917263,78233.0,78214.0,0.00931749]
[1769900118498,0.00917263,78239.0,78214.0,0.00931749]
[1769900118909,0.012799,78234.0,78214.0,0.00931749]
[1769900119100,0.00917263,78233.0,78214.0,0.00931749]
[1769900119295,0.00917263,78233.0,78216.0,0.02211949]
[1769900119501,0.00917263,78233.0,78217.0,0.00931749]
[1769900121207,0.00917263,78233.0,78220.0,0.17779203]
[1769900121399,0.00917263,78239.0,78221.0,0.00931749]
[1769900122207,0.00917263,78239.0,78222.0,0.11299749]
[1769900122912,0.00917263,78247.0,78230.0,0.00931749]
[1769900123105,0.00917263,78258.0,78238.0,0.00931749]
[1769900123301,0.00917263,78258.0,78241.0,0.00931749]
[1769900123630,0.00917263,78258.0,78242.0,0.10368]
[1769900124005,0.10368,78259.0,78243.0,0.00931749]
[1769900124508,0.116475,78259.0,78243.0,0.00931749]
[1769900125010,0.10368,78259.0,78243.0,0.00931749]
[1769900125314,0.012792,78276.0,78230.0,0.012799]
[1769900125315,0.00917263,78251.0,78230.0,0.012799]
[1769900125504,0.00917263,78249.0,78229.0,0.10368]
[1769900125809,0.00917263,78243.0,78229.0,0.10368]
[1769900126206,0.00917263,78242.0,78229.0,0.10368]
[1769900126408,0.10368,78244.0,78229.0,0.10368]
[1769900126409,0.00917263,78238.0,78229.0,0.10368]
[1769900126601,0.00917263,78236.0,78214.0,0.10368]
[1769900126801,0.00917263,78233.0,78214.0,0.10368]
[1769900127003,0.00917263,78229.0,78205.0,0.10368]
[1769900127203,0.349917,78243.0,78205.0,0.10368]
[1769900127204,0.00917263,78222.0,78205.0,0.10368]
[1769900128110,0.00917263,78220.0,78205.0,0.10368]
[1769900128311,0.00917263,78218.0,78205.0,0.10368]
[1769900128611,0.00917263,78217.0,78205.0,0.10368]
[1769900129109,0.00917263,78214.0,78195.0,0.10368]
[1769900130207,0.012802,78218.0,78196.0,0.00931749]
[1769900130405,0.012802,78218.0,78197.0,0.00931749]
[1769900130806,0.02197463,78218.0,78197.0,0.00931749]
[1769900131206,0.00917263,78218.0,78197.0,0.00931749]
[1769900132113,0.00917263,78218.0,78198.0,0.012805]
[1769900132514,0.00917263,78218.0,78199.0,0.00931749]
[1769900132714,0.00917263,78218.0,78200.0,0.012804]
[1769900132913,0.10368,78221.0,78201.0,0.00931749]
[1769900133116,0.11285263,78221.0,78201.0,0.00931749]
[1769900134410,0.10368,78221.0,78203.0,0.00931749]
[1769900135008,0.10368,78221.0,78204.0,0.10368]
[1769900135209,0.10368,78221.0,78205.0,0.00931749]
[1769900135709,0.00917263,78226.0,78205.0,0.00931749]
[1769900136010,0.10368,78226.0,78210.0,0.00931749]
[1769900136719,0.00917263,78229.0,78210.0,0.00931749]
[1769900137418,0.0128,78228.0,78210.0,0.00931749]
[1769900137805,0.00917263,78229.0,78210.0,0.00931749]
[1769900138618,0.10368,78228.0,78210.0,0.00931749]
[1769900138811,0.10368,78228.0,78210.0,0.02212049]
[1769900139208,0.11332529,78228.0,78211.0,0.00970475]
[1769900140317,0.00964529,78227.0,78211.0,0.00970475]
[1769900145829,0.02244529,78227.0,78211.0,0.00970475]
[1769900146029,0.00975501,78226.0,78211.0,0.00970475]
[1769900147320,0.00975501,78226.0,78211.0,0.02250775]
[1769900147529,0.00975501,78226.0,78211.0,0.00970475]
[1769900147926,0.00975501,78226.0,78212.0,0.02214778]
[1769900149028,0.10368,78228.0,78215.0,0.00934478]
[1769900149225,0.10368,78228.0,78216.0,0.02214678]
[1769900149426,0.10368,78228.0,78217.0,0.00934478]
[1769900149635,0.09938008,78228.0,78222.0,0.012801]
[1769900149825,0.00975501,78237.0,78220.0,0.02214578]
[1769900150026,0.00975501,78237.0,78221.0,0.00934478]
[1769900153540,0.00975501,78237.0,78227.0,0.1772859]
[1769900155034,0.012798,78239.0,78227.0,0.1772859]
[1769900155235,0.10368,78240.0,78227.0,0.1772859]
[1769900155431,0.11343501,78240.0,78227.0,0.1772859]
[1769900155635,0.11343501,78240.0,78224.0,0.00934478]
[1769900155837,0.00975501,78239.0,78224.0,0.00934478]
[1769900158743,0.02255301,78239.0,78224.0,0.00934478]
[1769900159335,0.00975501,78238.0,78219.0,0.00934478]
[1769900159644,0.012798,78239.0,78219.0,0.00934478]
[1769900159944,0.00975501,78238.0,78220.0,0.00934478]
[1769900160545,0.00975501,78241.0,78222.0,0.00934478]
[1769900161338,0.00975501,78239.0,78222.0,0.00934478]
[1769900161545,0.00975501,78239.0,78221.0,0.012801]
[1769900162045,0.00975501,78239.0,78221.0,0.02214578]
[1769900162345,0.00975501,78239.0,78221.0,0.00934478]
[1769900162741,0.00975501,78237.0,78221.0,0.00934478]
[1769900163142,0.00975501,78237.0,78217.0,0.10368]
[1769900163443,0.00975501,78235.0,78217.0,0.10368]
[1769900164344,0.00975501,78235.0,78218.0,0.012802]
[1769900165042,0.00975501,78238.0,78219.0,0.00934478]
[1769900165741,0.00975501,78236.0,78219.0,0.02214578]
[1769900166044,0.00975501,78236.0,78219.0,0.012801]
[1769900167347,0.00975501,78236.0,78217.0,0.10368]
[1769900169045,0.00975501,78236.0,78218.0,0.00902206]
[1769900170446,0.00975501,78236.0,78217.0,0.10368]
[1769900171043,0.00904997,78234.0,78217.0,0.10368]
[1769900171247,0.17724303,78227.0,78217.0,0.10368]
[1769900171544,0.00904997,78225.0,78206.0,0.12546506]
[1769900171733,0.28088303,78227.0,78206.0,0.12546506]
[1769900171734,0.00904997,78224.0,78206.0,0.12546506]
[1769900171940,0.00904997,78223.0,78206.0,0.11266206]
[1769900172145,0.00904997,78223.0,78206.0,0.10364]
[1769900172641,0.00904997,78215.0,78206.0,0.10364]
[1769900173036,0.00904997,78214.0,78198.0,0.00902206]
[1769900173236,0.17724303,78210.0,78198.0,0.00902206]
[1769900173437,0.199096,78210.0,78197.0,0.10321777]
[1769900173638,0.186293,78210.0,78197.0,0.10321777]
[1769900173840,0.00904997,78209.0,78197.0,0.10321777]
[1769900174145,0.17724303,78210.0,78198.0,0.00902206]
[1769900174345,0.00904997,78209.0,78197.0,0.10321777]
[1769900174939,0.00904997,78207.0,78197.0,0.10321777]
[1769900175136,0.00904997,78206.0,78197.0,0.04447414]
[1769900175336,0.00904997,78206.0,78188.0,0.10364]
[1769900176041,0.00904997,78204.0,78188.0,0.10364]
[1769900176844,0.00904997,78200.0,78188.0,0.10364]
[1769900177343,0.00904997,78205.0,78188.0,0.11266206]
[1769900177536,0.00904997,78205.0,78188.0,0.10364]
[1769900177944,0.186293,78200.0,78188.0,0.10364]
[1769900178440,0.00904997,78199.0,78188.0,0.10364]
[1769900178946,0.00904997,78199.0,78184.0,0.012807]
[1769900179344,0.00904997,78196.0,78178.0,0.10368]
[1769900179645,0.00904997,78188.0,78169.0,0.01281]
[1769900179846,0.10368,78198.0,78168.0,0.00902206]
[1769900179847,0.00904997,78186.0,78168.0,0.00902206]
[1769900180948,0.00904997,78186.0,78168.0,0.02183206]
[1769900181349,0.00904997,78186.0,78168.0,0.00902206]
[1769900181544,0.012807,78185.0,78168.0,0.00902206]
[1769900181744,0.02185697,78185.0,78168.0,0.00902206]
[1769900183051,0.17724303,78180.0,78168.0,0.00902206]
[1769900183244,0.012808,78179.0,78168.0,0.00902206]
[1769900183444,0.17724303,78180.0,78168.0,0.00902206]
[1769900184047,0.19005103,78180.0,78168.0,0.00902206]
[1769900184749,0.012808,78178.0,78168.0,0.00902206]
[1769900184950,0.012808,78178.0,78164.0,0.11270206]
[1769900185150,0.012808,78176.0,78164.0,0.11270206]
[1769900185649,0.00904997,78175.0,78164.0,0.10368]
[1769900185838,0.012808,78176.0,78164.0,0.10368]
[1769900187340,0.012808,78176.0,78164.0,0.11270206]
[1769900188953,0.02185797,78179.0,78164.0,0.11270206]
[1769900189154,0.00904997,78178.0,78164.0,0.11270206]
[1769900189654,0.00904997,78178.0,78164.0,0.10368]
[1769900189953,0.02185797,78177.0,78164.0,0.10368]
[1769900191153,0.012808,78177.0,78164.0,0.11270206]
[1769900194056,0.10368,78188.0,78173.0,0.00902206]
[1769900194254,0.10368,78188.0,78174.0,0.00902206]
[1769900196052,0.012806,78191.0,78176.0,0.00902206]
[1769900196454,0.012805,78195.0,78177.0,0.00902206]
[1769900196653,0.012805,78195.0,78179.0,0.00902206]
[1769900198661,0.116525,78197.0,78179.0,0.00902206]
[1769900198860,0.116525,78197.0,78181.0,0.00988351]
[1769900199153,0.10372,78197.0,78181.0,0.00988351]
[1769900199360,0.00904997,78206.0,78182.0,0.00988351]
[1769900199658,0.10372,78207.0,78182.0,0.00988351]
[1769900199854,0.012804,78204.0,78186.0,0.00988351]
[1769900200055,0.012804,78204.0,78188.0,0.00988351]
[1769900200252,0.012804,78202.0,78188.0,0.00988351]
[1769900201863,0.10372,78207.0,78192.0,0.00994314]
[1769900203666,0.012803,78210.0,78192.0,0.00994314]
[1769900203865,0.012802,78216.0,78198.0,0.00994314]
[1769900204161,0.10372,78217.0,78204.0,0.00994314]
[1769900205166,0.012801,78224.0,78207.0,0.02274614]
[1769900205567,0.012801,78224.0,78208.0,0.00994314]
[1769900205767,0.10372,78226.0,78208.0,0.00994314]
[1769900206268,0.10372,78226.0,78210.0,0.00994314]
[1769900206666,0.10372,78226.0,78213.0,0.02274514]
[1769900206867,0.10372,78226.0,78213.0,0.00994314]
[1769900207469,0.02260817,78230.0,78214.0,0.00994314]
[1769900207470,0.00980817,78230.0,78214.0,0.00994314]
[1769900208371,0.00980817,78232.0,78216.0,0.012802]
[1769900208873,0.012799,78231.0,78215.0,0.00994314]
[1769900210071,0.00980817,78236.0,78218.0,0.00994314]
[1769900210270,0.00980817,78236.0,78219.0,0.012801]
[1769900210571,0.00980817,78236.0,78220.0,0.00994314]
[1769900211976,0.10368,78237.0,78224.0,0.00994314]
[1769900212575,0.10368,78237.0,78225.0,0.00994314]
[1769900214283,0.012797,78244.0,78225.0,0.00994314]
[1769900214483,0.00980817,78245.0,78227.0,0.00994314]
[1769900215677,0.012797,78245.0,78227.0,0.00994314]
[1769900215877,0.00980817,78240.0,78224.0,0.10368]
[1769900216785,0.00980817,78240.0,78224.0,0.116481]
[1769900217686,0.00980817,78240.0,78226.0,0.0128]
[1769900218988,0.00980817,78240.0,78228.0,0.0128]
[1769900220482,0.00980817,78240.0,78230.0,0.0128]
[1769900221786,0.00980817,78240.0,78224.0,0.11362314]
[1769900221787,0.00980817,78240.0,78224.0,0.10368]
[1769900223185,0.00980817,78240.0,78225.0,0.0128]
[1769900224287,0.00980817,78240.0,78224.0,0.10368]
[1769900224288,0.00980817,78240.0,78226.0,0.0128]
[1769900225689,0.00980817,78240.0,78227.0,0.0128]
[1769900227391,0.012797,78243.0,78229.0,0.00938679]
[1769900229289,0.0227032,78246.0,78229.0,0.00938679]
[1769900229482,0.17219249,78245.0,78229.0,0.00938679]
[1769900229681,0.16228629,78244.0,78229.0,0.00938679]
[1769900230087,0.0099062,78243.0,78228.0,0.02218679]
[1769900230287,0.16228629,78242.0,78228.0,0.03498679]
[1769900230493,0.16228629,78242.0,78230.0,0.0128]
[1769900230691,0.0099062,78243.0,78230.0,0.0128]
[1769900230891,0.012797,78246.0,78230.0,0.0128]
[1769900231092,0.17227739,78245.0,78230.0,0.0128]
[1769900231288,0.0099062,78243.0,78227.0,0.0128]
[1769900231489,0.16237119,78242.0,78228.0,0.0128]
[1769900231988,0.16237119,78242.0,78229.0,0.00938679]
[1769900232195,0.16237119,78241.0,78229.0,0.02218679]
[1769900232493,0.0099062,78245.0,78229.0,0.02218679]
[1769900232494,0.16237119,78240.0,78229.0,0.02218679]
[1769900232693,0.0099062,78245.0,78229.0,0.02218679]
[1769900232891,0.1625512,78244.0,78229.0,0.02218679]
[1769900233193,0.1625512,78243.0,78230.0,0.00938679]
[1769900233390,0.1625512,78242.0,78230.0,0.00938679]
[1769900233587,2e-07,78241.0,78236.0,0.00938679]
[1769900233794,0.10364,78256.0,78242.0,0.00938679]
[1769900234093,0.0099062,78263.0,78244.0,0.17731405]
[1769900234094,0.10364,78258.0,78244.0,0.17731405]
[1769900234489,0.1007862,78257.0,78244.0,0.17731405]
[1769900234892,0.10364,78258.0,78244.0,0.17731405]
[1769900235286,0.0099062,78270.0,78245.0,0.00938679]